fUSD/lending_fUSD_20240429
["ID","MTS","AMOUNT","RATE_DAILY","PERIOD"]
[324873797,1714386644835,-150.0,0.00012688,2]
[324873798,1714386644844,-250000.0,0.0001269,2]
[324873799,1714386644853,-3300.0,0.000127,4]
[324873800,1714386644862,-150.0,0.00012703,2]
[324873801,1714386644872,-150.0,0.00012717,2]
[324873802,1714386644881,-558.2544268,0.00012717,2]
[324873803,1714386644890,-150.0,0.00012721,2]
[324873804,1714386644899,-150.0,0.00012725,2]
[324873805,1714386644908,-150.0,0.0001273,2]
[324873806,1714386644917,-1000.0,0.00012736,2]
[324873807,1714386644927,-500.0,0.00012736,2]
[324873808,1714386644937,-150.0,0.00012737,2]
[324873809,1714386644946,-150.0,0.00012743,2]
[324873810,1714386644959,-150.0,0.00012744,2]
[324873811,1714386644968,-150.0,0.00012746,2]
[324873812,1714386644978,-150.0,0.00012746,2]
[324873813,1714386644987,-150.0,0.00012754,2]
[324873814,1714386644997,-150.0,0.00012761,2]
[324873815,1714386645006,-150.0,0.00012762,2]
[324873816,1714386645016,-150.0,0.00012765,2]
[324873817,1714386645025,-150.0,0.00012771,2]
[324873818,1714386645038,-150.0,0.00012774,2]
[324873819,1714386645048,-150.0,0.00012776,2]
[324873820,1714386645057,-150.0,0.0001279,2]
[324873821,1714386645065,-150.0,0.0001279,2]
[324873822,1714386645075,-150.0,0.00012794,2]
[324873823,1714386645084,-10000.000001,0.000128,2]
[324873824,1714386645093,-3300.0,0.000128,4]
[324873825,1714386645103,-558.2544268,0.00012809,2]
[324873826,1714386645112,-150.0,0.0001281,2]
[324873827,1714386645122,-150.0,0.00012812,2]
[324873828,1714386645131,-1500.0,0.00012821,2]
[324873829,1714386645140,-150.0,0.00012823,2]
[324873830,1714386645149,-152.0,0.00012833,4]
[324873831,1714386645159,-150.0,0.00012838,2]
[324873832,1714386645168,-150.0,0.00012844,2]
[324873833,1714386645178,-509.0,0.00012849,2]
[324873834,1714386645187,-504.18702372,0.0001285,2]
[324873835,1714386645196,-150.0,0.00012864,2]
[324873836,1714386645205,-150.0,0.00012864,2]
[324873837,1714386645215,-150.0,0.00012867,2]
[324873838,1714386645224,-284.26126622,0.00012871,2]
[324873839,1714386645233,-500.0,0.00012872,2]
[324873840,1714386645242,-475.85,0.00012872,2]
[324873841,1714386645251,-1052.69,0.00012872,2]
[324873842,1714386645260,-500.0,0.00012872,2]
[324873843,1714386645271,-500.0,0.00012872,2]
[324873844,1714386645280,-500.0,0.00012872,2]
[324873845,1714386645292,-500.0,0.00012872,2]
[324873846,1714386645301,-600.51,0.00012872,2]
[324873847,1714386645310,-500.0,0.00012872,2]
[324873848,1714386645319,-500.0,0.00012872,2]
[324873849,1714386645328,-1129.72,0.00012872,2]
[324873850,1714386645337,-896.4,0.00012872,2]
[324873851,1714386645346,-500.0,0.00012872,2]
[324873852,1714386645355,-1382.62,0.00012872,2]
[324873853,1714386645364,-1011.76,0.00012872,2]
[324873854,1714386645373,-637.45,0.00012872,2]
[324873855,1714386645382,-1287.96,0.00012872,2]
[324873856,1714386645391,-489.37,0.00012872,2]
[324873857,1714386645400,-500.0,0.00012872,2]
[324873858,1714386645409,-500.0,0.00012872,2]
[324873859,1714386645418,-500.0,0.00012872,2]
[324873860,1714386645427,-1470.93,0.00012872,2]
[324873861,1714386645437,-6214.85,0.00012872,2]
[324873862,1714386645447,-500.0,0.00012872,2]
[324873863,1714386645456,-500.0,0.00012872,2]
[324873864,1714386645465,-2733.59,0.00012872,2]
[324873865,1714386645474,-151.0,0.00012872,2]
[324873866,1714386645483,-500.0,0.00012873,2]
[324873867,1714386645492,-500.0,0.00012873,2]
[324873868,1714386645502,-500.0,0.00012873,2]
[324873869,1714386645511,-500.0,0.00012873,2]
[324873870,1714386645521,-500.0,0.00012873,2]
[324873871,1714386645530,-150.0,0.00012873,2]
[324873872,1714386645541,-500.0,0.00012873,2]
[324873873,1714386645551,-151.0,0.00012873,2]
[324873874,1714386645560,-150.0,0.00012873,2]
[324873875,1714386645569,-500.0,0.00012873,2]
[324873876,1714386645578,-500.0,0.00012873,2]
[324873877,1714386645587,-151.0,0.00012873,2]
[324873878,1714386645596,-500.0,0.00012873,2]
[324873879,1714386645605,-151.0,0.00012873,2]
[324873880,1714386645614,-151.0,0.00012873,2]
[324873881,1714386645623,-500.0,0.00012873,2]
[324873882,1714386645633,-500.0,0.00012873,2]
[324873883,1714386645642,-151.0,0.00012873,2]
[324873884,1714386645651,-500.0,0.00012873,2]
[324873885,1714386645660,-151.0,0.00012873,2]
[324873886,1714386645669,-815.72,0.00012873,2]
[324873887,1714386645679,-500.0,0.00012873,2]
[324873888,1714386645688,-151.0,0.00012873,2]
[324873889,1714386645697,-500.0,0.00012873,2]
[324873890,1714386645706,-659.52,0.00012873,2]
[324873891,1714386645715,-500.0,0.00012873,2]
[324873892,1714386645724,-546.01,0.00012873,2]
[324873893,1714386645733,-500.0,0.00012873,2]
[324873894,1714386645742,-151.0,0.00012873,2]
[324873895,1714386645752,-151.0,0.00012873,2]
[324873896,1714386645761,-500.0,0.00012873,2]
[324873897,1714386645771,-689.25,0.00012873,2]
[324873898,1714386645779,-531.08,0.00012873,2]
[324873899,1714386645789,-500.0,0.00012873,2]
[324873900,1714386645798,-1163.97,0.00012873,2]
[324873901,1714386645808,-507.34,0.00012873,2]
[324873902,1714386645817,-500.0,0.00012873,2]
[324873903,1714386645826,-500.0,0.00012873,2]
[324873904,1714386645835,-151.0,0.00012873,2]
[324873905,1714386645844,-2054.82,0.00012873,2]
[324873906,1714386645854,-500.0,0.00012873,2]
[324873907,1714386645863,-500.0,0.00012873,2]
[324873908,1714386645873,-1188.52,0.00012873,2]
[324873909,1714386645882,-1031.19,0.00012873,2]
[324873910,1714386645891,-151.0,0.00012873,2]
[324873911,1714386645902,-542.03,0.00012873,2]
[324873912,1714386645911,-500.0,0.00012873,2]
[324873913,1714386645921,-1137.67,0.00012873,2]
[324873914,1714386645930,-151.0,0.00012873,2]
[324873915,1714386645939,-520.76,0.00012873,2]
[324873916,1714386645948,-652.84,0.00012873,2]
[324873917,1714386645958,-151.0,0.00012873,2]
[324873918,1714386645969,-519.09,0.00012873,2]
[324873919,1714386645978,-250.433996,0.00012873,2]
[324873920,1714386645988,-863.26,0.00012873,2]
[324873921,1714386645998,-151.0,0.00012873,2]
[324873922,1714386646007,-151.0,0.00012873,2]
[324873923,1714386646016,-151.0,0.00012873,2]
[324873924,1714386646026,-151.0,0.00012873,2]
[324873925,1714386646038,-151.0,0.00012873,2]
[324873926,1714386646047,-500.0,0.00012873,2]
[324873927,1714386646057,-500.0,0.00012873,2]
[324873928,1714386646066,-508.25,0.00012873,2]
[324873929,1714386646076,-592.63,0.00012873,2]
[324873930,1714386646085,-500.0,0.00012873,2]
[324873931,1714386646094,-500.0,0.00012873,2]
[324873932,1714386646105,-5817.91,0.00012873,2]
[324873933,1714386646114,-500.0,0.00012873,2]
[324873934,1714386646123,-500.0,0.00012873,2]
[324873935,1714386646133,-481.94143694,0.00012873,2]
[324873936,1714386646142,-500.0,0.00012873,2]
[324873937,1714386646151,-500.0,0.00012873,2]
[324873938,1714386646160,-500.0,0.00012873,2]
[324873939,1714386646170,-500.0,0.00012873,2]
[324873940,1714386646179,-6832.74,0.00012873,2]
[324873941,1714386646188,-364.300101,0.00012873,2]
[324873942,1714386646197,-500.0,0.00012873,2]
[324873943,1714386646206,-364.300101,0.00012873,2]
[324873944,1714386646216,-500.0,0.00012873,2]
[324873945,1714386646225,-1052.31,0.00012873,2]
[324873946,1714386646234,-500.0,0.00012873,2]
[324873947,1714386646243,-500.0,0.00012873,2]
[324873948,1714386646252,-6960.29,0.00012873,2]
[324873949,1714386646262,-500.0,0.00012873,2]
[324873950,1714386646272,-500.0,0.00012873,2]
[324873951,1714386646281,-1403.13,0.00012873,2]
[324873952,1714386646293,-2694.49,0.00012873,2]
[324873953,1714386646302,-500.0,0.00012873,2]
[324873955,1714386646312,-500.0,0.00012874,2]
[324873956,1714386646320,-500.0,0.00012874,2]
[324873958,1714386646329,-500.0,0.00012874,2]
[324873959,1714386646338,-1269.92,0.00012874,2]
[324873960,1714386646347,-514.35,0.00012874,2]
[324873961,1714386646356,-500.0,0.00012874,2]
[324873962,1714386646364,-500.0,0.00012874,2]
[324873963,1714386646373,-1030.73,0.00012874,2]
[324873964,1714386646382,-500.0,0.00012874,2]
[324873965,1714386646391,-500.0,0.00012874,2]
[324873966,1714386646401,-164.63,0.00012874,2]
[324873967,1714386646410,-500.0,0.00012875,2]
[324873968,1714386646419,-500.0,0.00012875,2]
[324873969,1714386646428,-1000.0,0.00012875,2]
[324873970,1714386646437,-500.0,0.00012875,2]
[324873971,1714386646446,-150.0,0.00012876,2]
[324873972,1714386646455,-150.0,0.00012884,2]
[324873973,1714386646464,-558.2544268,0.000129,2]
[324873974,1714386646475,-3300.0,0.000129,4]
[324873975,1714386646484,-268.73832274,0.000129,2]
[324873976,1714386646493,-2416.99886975,0.000129,2]
[324873977,1714386646502,-150.0,0.00012901,2]
[324873978,1714386646511,-150.0,0.00012904,2]
[324873979,1714386646520,-150.0,0.00012915,2]
[324873980,1714386646528,-500.0,0.00012915,2]
[324873981,1714386646538,-500.0,0.00012915,2]
[324873982,1714386646550,-500.0,0.00012915,2]
[324873983,1714386646559,-500.0,0.00012915,2]
[324873984,1714386646569,-505.4824,0.00012915,2]
[324873985,1714386646578,-150.0,0.0001292,2]
[324873986,1714386646586,-549.51,0.00012921,2]
[324873987,1714386646595,-672.30802329,0.00012935,2]
[324873988,1714386646604,-150.0,0.00012942,2]
[324873989,1714386646613,-968.758749,0.00012969,2]
[324873990,1714386646622,-751.7623934,0.00012969,2]
[324873991,1714386646632,-401.21230766,0.0001297,2]
[324873992,1714386646641,-835.222676,0.00012971,2]
[324873993,1714386646650,-701.6866031,0.00012971,2]
[324873994,1714386646659,-568.1505301,0.00012971,2]
[324873995,1714386646669,-434.6144572,0.00012971,2]
[324873996,1714386646679,-301.0783843,0.00012971,2]
[324873997,1714386646688,-243.93019072,0.00012978,2]
[324873998,1714386646697,-11998.64492343,0.00012978,2]
[324873999,1714386646706,-1568.34307791,0.00012979,2]
[324874000,1714386646715,-151.0,0.0001298,2]
[324874001,1714386646724,-151.0,0.0001298,2]
[324874002,1714386646733,-151.0,0.0001298,2]
[324874003,1714386646742,-151.0,0.0001298,2]
[324874004,1714386646751,-151.0,0.0001298,2]
[324874006,1714386646803,-151.0,0.0001298,2]
[324874008,1714386646812,-151.0,0.0001298,2]
[324874009,1714386646822,-151.0,0.0001298,2]
[324874010,1714386646832,-151.0,0.0001298,2]
[324874011,1714386646841,-151.0,0.0001298,2]
[324874012,1714386646850,-151.0,0.0001298,2]
[324874013,1714386646859,-151.0,0.0001298,2]
[324874014,1714386646868,-151.0,0.0001298,2]
[324874015,1714386646878,-151.0,0.0001298,2]
[324874016,1714386646887,-364.300101,0.0001298,2]
[324874017,1714386646896,-364.300101,0.0001298,2]
[324874018,1714386646905,-2056.39,0.00012983,2]
[324874019,1714386646914,-2935.0,0.00012986,2]
[324874020,1714386646924,-29480.45228526,0.0001299,2]
[324874021,1714386646933,-823.75767315,0.00012994,2]
[324874022,1714386646942,-1388.83893324,0.00012995,2]
[324874023,1714386646954,-155106.21323089,0.00012996,2]
[324874024,1714386646969,-3705.768,0.00012997,2]
[324874025,1714386646980,-1482519.66615971,0.00013,2]
[324874026,1714386647219,-540.396828,0.00013,2]
[324874027,1714386647232,-285.099995,0.00013,2]
[324874028,1714386647242,-1068.28471831,0.00013,2]
[324874029,1714386647523,-500.0,0.00011502,2]
[324874030,1714386647534,-343.14841052,0.00011502,2]
[324874031,1714386647545,-168.51021583,0.00011502,2]
[324874032,1714386647554,-194.01672326,0.00011502,2]
[324874033,1714386647563,-500.0,0.00011776,2]
[324874034,1714386647573,-500.0,0.0001205,2]
[324874035,1714386647582,-500.0,0.00012051,2]
[324874036,1714386647591,-500.0,0.00012324,2]
[324874037,1714386647599,-406.84966277,0.00012325,2]
[324874038,1714386647608,-500.0,0.00012598,2]
[324874039,1714386647617,-500.0,0.00012872,2]
[324874040,1714386647626,-91889.6547961,0.00013,2]
[324874041,1714386647637,-59262.40000031,0.00013,2]
[324874042,1714386647648,-396385.52970073,0.00013,2]
[324874043,1714386647659,-9229.97505153,0.00013,2]
[324874044,1714386647752,-511.54331412,0.00011502,2]
[324874045,1714386647760,-364.96668608,0.00013,2]
[324874046,1714386647771,-1434.8542506,0.00013,2]
[324874047,1714386647859,-368.20071861,0.00011974,2]
[324874048,1714386647870,-488.73793469,0.00011974,2]
[324874049,1714386647892,-1313.19154002,0.00011974,2]
[324874050,1714386647903,-539.06283141,0.00011974,2]
[324874051,1714386647921,-2196.87329731,0.00011974,2]
[324874052,1714386647930,-12379.43484808,0.00013,2]
[324874053,1714386647941,-1011291.70558251,0.00013,2]
[324874054,1714386647960,-648.04068147,0.00013,2]
[324874055,1714386647998,-500.0,0.00011502,2]
[324874056,1714386648007,-4068.00013207,0.00013,2]
[324874057,1714386648018,-88591.58311985,0.00013,2]
[324874058,1714386648029,-536.82847478,0.00013,2]
[324874059,1714386864392,-232.45100731,8.617e-05,2]
[324874078,1714387786759,-383.14,9.779e-05,2]
[324874079,1714387808846,-298.84757904,0.0001,2]
[324874080,1714387808872,-373.9718439,0.0001,2]
[324874092,1714387831590,-2435.0,0.00011,3]
[324874093,1714387831604,-15.0,0.00011,3]
[324874094,1714387831616,-202.14,0.00011177,2]
[324874095,1714387831628,-733.40100731,0.00011414,2]
[324874131,1714387837617,-81.53899269,0.00011414,2]
[324874133,1714387837627,-150.0,0.00011479,2]
[324874135,1714387837638,-500.0,0.00011502,2]
[324874137,1714387837649,-500.0,0.00011502,2]
[324874139,1714387837659,-500.0,0.00011502,2]
[324874141,1714387837669,-500.0,0.00011502,2]
[324874144,1714387837680,-500.0,0.00011502,2]
[324874146,1714387837690,-500.0,0.00011502,2]
[324874148,1714387837700,-500.0,0.00011502,2]
[324874150,1714387837711,-258.31822142,0.00011502,2]
[324874152,1714387837721,-500.0,0.00011502,2]
[324874154,1714387837731,-500.0,0.00011502,2]
[324874156,1714387837742,-500.0,0.00011502,2]
[324874158,1714387837752,-500.0,0.00011502,2]
[324874160,1714387837762,-318.59038172,0.00011502,2]
[324874162,1714387837772,-623.69,0.00011502,2]
[324874164,1714387837784,-610.60596235,0.00011502,2]
[324874167,1714387837795,-443.4372637,0.00011502,2]
[324874169,1714387837805,-500.0,0.00011502,2]
[324874171,1714387837816,-500.0,0.00011502,2]
[324874173,1714387837826,-500.0,0.00011502,2]
[324874175,1714387837836,-1007.66,0.00011502,2]
[324874177,1714387837847,-500.0,0.00011502,2]
[324874179,1714387837857,-500.0,0.00011502,2]
[324874181,1714387837868,-500.0,0.00011502,2]
[324874183,1714387837879,-500.0,0.00011502,2]
[324874185,1714387837889,-498.84,0.00011502,2]
[324874188,1714387837899,-500.0,0.00011502,2]
[324874191,1714387837909,-405.86204669,0.00011502,2]
[324874194,1714387837919,-500.0,0.00011502,2]
[324874198,1714387837929,-500.0,0.00011502,2]
[324874201,1714387837940,-500.0,0.00011502,2]
[324874203,1714387837950,-773.05,0.00011502,2]
[324874205,1714387837960,-500.0,0.00011502,2]
[324874208,1714387837969,-500.0,0.00011502,2]
[324874210,1714387837980,-500.0,0.00011502,2]
[324874212,1714387837990,-500.0,0.00011502,2]
[324874215,1714387838000,-500.0,0.00011502,2]
[324874218,1714387838011,-549.6,0.00011502,2]
[324874220,1714387838021,-362.4656344,0.00011503,2]
[324874222,1714387838031,-165.27,0.00011652,2]
[324874224,1714387838042,-1031.67,0.00011662,2]
[324874226,1714387838052,-171.87,0.00011665,2]
[324874228,1714387838061,-1798.3904,0.00011676,2]
[324874230,1714387838073,-10000.0,0.00011677,2]
[324874233,1714387838083,-150.0,0.00011679,2]
[324874235,1714387838092,-350.15,0.00011704,2]
[324874237,1714387838103,-1007.66,0.00011776,2]
[324874239,1714387838113,-500.0,0.00011776,2]
[324874241,1714387838123,-500.0,0.00011776,2]
[324874243,1714387838133,-500.0,0.00011776,2]
[324874245,1714387838144,-500.0,0.00011776,2]
[324874247,1714387838154,-773.05,0.00011776,2]
[324874250,1714387838165,-500.0,0.00011776,2]
[324874252,1714387838175,-1008.078204,0.00012,2]
[324874254,1714387838185,-383.14,0.00012043,2]
[324874256,1714387838195,-1007.66,0.0001205,2]
[324874258,1714387838205,-500.0,0.0001205,2]
[324874260,1714387838215,-500.0,0.0001205,2]
[324874262,1714387838226,-500.0,0.0001205,2]
[324874264,1714387838236,-500.0,0.0001205,2]
[324874267,1714387838246,-773.05,0.0001205,2]
[324874269,1714387838256,-500.0,0.0001205,2]
[324874271,1714387838266,-210.0999,0.00012124,2]
[324874273,1714387838276,-150.0,0.00012192,2]
[324874275,1714387838286,-1000.0,0.00012224,2]
[324874277,1714387838297,-1033.2572,0.00012224,2]
[324874279,1714387838311,-1547.7811,0.00012224,2]
[324874281,1714387838322,-1007.66,0.00012324,2]
[324874284,1714387838332,-500.0,0.00012324,2]
[324874286,1714387838343,-500.0,0.00012324,2]
[324874288,1714387838355,-500.0,0.00012324,2]
[324874290,1714387838365,-500.0,0.00012324,2]
[324874292,1714387838376,-773.05,0.00012324,2]
[324874294,1714387838388,-500.0,0.00012324,2]
[324874296,1714387838399,-509.0,0.00012329,2]
[324874298,1714387838410,-1000.0,0.000125,2]
[324874301,1714387838420,-1007.66,0.00012598,2]
[324874303,1714387838431,-500.0,0.00012598,2]
[324874305,1714387838441,-500.0,0.00012598,2]
[324874307,1714387838451,-500.0,0.00012598,2]
[324874309,1714387838462,-500.0,0.00012598,2]
[324874311,1714387838473,-773.05,0.00012598,2]
[324874313,1714387838483,-500.0,0.00012598,2]
[324874315,1714387838493,-150.0,0.00012678,2]
[324874317,1714387838503,-150.0,0.00012685,2]
[324874320,1714387838514,-150.0,0.00012701,2]
[324874322,1714387838524,-150.0,0.00012703,2]
[324874324,1714387838534,-150.0,0.00012713,2]
[324874325,1714387838544,-150.0,0.00012715,2]
[324874326,1714387838554,-150.0,0.00012724,2]
[324874327,1714387838564,-150.0,0.00012726,2]
[324874328,1714387838578,-1500.0,0.00012734,2]
[324874329,1714387838590,-150.0,0.00012734,2]
[324874330,1714387838600,-915.90714684,0.00012737,2]
[324874331,1714387838610,-150.0,0.00012737,2]
[324874332,1714387838619,-150.0,0.00012744,2]
[324874358,1714387838629,-150.0,0.00012746,2]
[324874362,1714387838921,-150.0,0.0001275,2]
[324874364,1714387838938,-150.0,0.0001275,2]
[324874366,1714387838947,-1500.0,0.0001276,2]
[324874368,1714387838957,-1500.0,0.00012762,2]
[324874370,1714387838966,-300.0,0.00012766,2]
[324874372,1714387838975,-1500.0,0.00012768,2]
[324874375,1714387838985,-2500.0,0.00012772,2]
[324874377,1714387838994,-1000.0,0.00012772,2]
[324874378,1714387839003,-150.0,0.00012775,2]
[324874380,1714387839013,-150.0,0.00012777,2]
[324874382,1714387839022,-1500.0,0.00012786,2]
[324874384,1714387839032,-150.0,0.00012797,2]
[324874386,1714387839041,-150.0,0.00012797,2]
[324874388,1714387839050,-150.0,0.000128,2]
[324874390,1714387839059,-150.0,0.00012802,2]
[324874392,1714387839069,-150.0,0.00012805,2]
[324874395,1714387839079,-150.0,0.00012819,2]
[324874397,1714387839088,-150.0,0.00012827,2]
[324874399,1714387839098,-150.0,0.00012828,2]
[324874401,1714387839107,-150.0,0.00012829,2]
[324874403,1714387839116,-150.0,0.0001283,2]
[324874405,1714387839125,-150.0,0.00012831,2]
[324874407,1714387839134,-1500.0,0.00012832,2]
[324874408,1714387839143,-150.0,0.00012837,2]
[324874410,1714387839152,-150.0,0.00012838,2]
[324874412,1714387839161,-814.94,0.00012841,2]
[324874415,1714387839172,-150.0,0.00012847,2]
[324874416,1714387839181,-150.0,0.00012849,2]
[324874418,1714387839191,-150.0,0.00012856,2]
[324874420,1714387839200,-150.0,0.00012857,2]
[324874422,1714387839210,-150.0,0.00012858,2]
[324874424,1714387839220,-1500.0,0.00012864,2]
[324874426,1714387839229,-150.0,0.00012869,2]
[324874428,1714387839238,-500.0,0.00012871,2]
[324874430,1714387839247,-500.0,0.00012871,2]
[324874433,1714387839257,-377.82492027,0.00012871,2]
[324874435,1714387839266,-500.0,0.00012871,2]
[324874437,1714387839275,-500.0,0.00012871,2]
[324874439,1714387839284,-500.0,0.00012871,2]
[324874441,1714387839293,-500.0,0.00012871,2]
[324874443,1714387839305,-500.0,0.00012871,2]
[324874445,1714387839315,-500.0,0.00012871,2]
[324874447,1714387839326,-500.0,0.00012871,2]
[324874449,1714387839334,-500.0,0.00012871,2]
[324874451,1714387839345,-500.0,0.00012871,2]
[324874453,1714387839353,-500.0,0.00012871,2]
[324874455,1714387839362,-500.0,0.00012871,2]
[324874458,1714387839371,-500.0,0.00012871,2]
[324874460,1714387839381,-500.0,0.00012871,2]
[324874462,1714387839390,-500.0,0.00012871,2]
[324874464,1714387839402,-500.0,0.00012871,2]
[324874466,1714387839412,-500.0,0.00012871,2]
[324874468,1714387839422,-500.0,0.00012871,2]
[324874470,1714387839431,-185.33,0.00012871,2]
[324874472,1714387839440,-507.47177151,0.00012871,2]
[324874474,1714387839449,-500.0,0.00012871,2]
[324874476,1714387839459,-500.0,0.00012871,2]
[324874478,1714387839468,-500.0,0.00012871,2]
[324874480,1714387839478,-500.0,0.00012871,2]
[324874482,1714387839487,-500.0,0.00012871,2]
[324874484,1714387839496,-500.0,0.00012871,2]
[324874486,1714387839505,-500.0,0.00012871,2]
[324874488,1714387839514,-500.0,0.00012871,2]
[324874490,1714387839524,-218.0524001,0.00012871,2]
[324874492,1714387839533,-500.0,0.00012871,2]
[324874494,1714387839542,-500.0,0.00012871,2]
[324874496,1714387839551,-500.0,0.00012871,2]
[324874498,1714387839560,-500.0,0.00012871,2]
[324874501,1714387839571,-500.0,0.00012871,2]
[324874502,1714387839580,-500.0,0.00012871,2]
[324874504,1714387839589,-500.0,0.00012871,2]
[324874506,1714387839598,-500.0,0.00012871,2]
[324874508,1714387839607,-500.0,0.00012871,2]
[324874511,1714387839617,-500.0,0.00012871,2]
[324874512,1714387839626,-501.18413945,0.00012871,2]
[324874515,1714387839636,-500.0,0.00012871,2]
[324874516,1714387839645,-500.0,0.00012871,2]
[324874518,1714387839654,-500.0,0.00012871,2]
[324874520,1714387839664,-500.0,0.00012871,2]
[324874522,1714387839673,-500.0,0.00012871,2]
[324874525,1714387839683,-500.0,0.00012871,2]
[324874527,1714387839693,-500.0,0.00012871,2]
[324874529,1714387839702,-500.0,0.00012871,2]
[324874531,1714387839711,-500.0,0.00012871,2]
[324874533,1714387839721,-500.0,0.00012871,2]
[324874535,1714387839731,-500.0,0.00012871,2]
[324874537,1714387839740,-500.0,0.00012871,2]
[324874539,1714387839749,-500.0,0.00012871,2]
[324874541,1714387839758,-500.0,0.00012871,2]
[324874543,1714387839768,-500.0,0.00012871,2]
[324874545,1714387839777,-500.0,0.00012871,2]
[324874547,1714387839786,-500.0,0.00012871,2]
[324874549,1714387839796,-500.0,0.00012871,2]
[324874551,1714387839805,-773.4,0.00012871,2]
[324874553,1714387839814,-500.0,0.00012871,2]
[324874555,1714387839825,-500.0,0.00012871,2]
[324874557,1714387839834,-500.0,0.00012871,2]
[324874559,1714387839843,-500.0,0.00012871,2]
[324874562,1714387839853,-853.26,0.00012871,2]
[324874564,1714387839864,-500.0,0.00012871,2]
[324874566,1714387839874,-744.23,0.00012871,2]
[324874568,1714387839883,-500.0,0.00012871,2]
[324874570,1714387839892,-500.0,0.00012871,2]
[324874572,1714387839902,-500.0,0.00012871,2]
[324874574,1714387839911,-500.0,0.00012871,2]
[324874576,1714387839920,-432.21,0.00012871,2]
[324874578,1714387839929,-500.0,0.00012871,2]
[324874580,1714387839939,-500.0,0.00012871,2]
[324874582,1714387839948,-500.0,0.00012871,2]
[324874584,1714387839957,-500.0,0.00012871,2]
[324874586,1714387839966,-500.0,0.00012871,2]
[324874588,1714387839975,-789.23,0.00012871,2]
[324874590,1714387839984,-5220.22,0.00012871,2]
[324874592,1714387839993,-833.11,0.00012871,2]
[324874594,1714387840003,-500.0,0.00012871,2]
[324874596,1714387840012,-500.0,0.00012871,2]
[324874598,1714387840020,-500.0,0.00012871,2]
[324874600,1714387840030,-500.0,0.00012871,2]
[324874602,1714387840039,-500.0,0.00012871,2]
[324874604,1714387840048,-216.31,0.00012871,2]
[324874606,1714387840057,-500.0,0.00012871,2]
[324874608,1714387840068,-1007.66,0.00012872,2]
[324874610,1714387840077,-640.19121083,0.00012872,2]
[324874612,1714387840088,-500.0,0.00012872,2]
[324874614,1714387840097,-150.0,0.00012872,2]
[324874616,1714387840107,-500.0,0.00012872,2]
[324874618,1714387840116,-500.0,0.00012872,2]
[324874620,1714387840126,-773.05,0.00012872,2]
[324874622,1714387840136,-500.0,0.00012872,2]
[324874624,1714387840146,-500.0,0.00012876,2]
[324874626,1714387840155,-510.0,0.00012877,2]
[324874628,1714387840165,-1000.0,0.00012881,2]
[324874630,1714387840175,-150.0,0.00012882,2]
[324874632,1714387840184,-152.35107919,0.00012886,2]
[324874634,1714387840193,-1000.0,0.00012886,2]
[324874636,1714387840203,-500.0,0.00012886,2]